bitfinex-derivatives/quotes_BTCF0:USTF0_20250614
["timestamp","ask_amount","ask_price","bid_price","bid_amount"]
[1749896988814,1.87988531,105060.0,105050.0,1.51696513]
[1749896989912,1.87988531,105060.0,105050.0,1.51296513]
[1749896990210,1.87988531,105060.0,105050.0,1.51596513]
[1749896992514,1.87988531,105060.0,105050.0,1.45647001]
[1749896992712,1.87988531,105060.0,105050.0,1.51596513]
[1749896993220,1.68959171,105060.0,105050.0,1.45647001]
[1749896994321,1.87988541,105060.0,105050.0,1.45647001]
[1749896997124,1.87988541,105060.0,105050.0,1.51596513]
[1749896997327,1.79063205,105060.0,105050.0,1.51596513]
[1749896997529,1.87988541,105060.0,105050.0,1.51596513]
[1749896997822,1.68959171,105060.0,105050.0,1.51596513]
[1749896998524,1.87988531,105060.0,105050.0,1.51596513]
[1749897000829,1.87988531,105060.0,105050.0,0.55816513]
[1749897001127,1.87988531,105060.0,105050.0,1.51564513]
[1749897003532,0.37988531,105060.0,105050.0,1.51564513]
[1749897003931,0.18959171,105060.0,105050.0,1.51564513]
[1749897004134,0.37988531,105060.0,105050.0,1.51564513]
[1749897006231,0.29063195,105060.0,105050.0,1.51564513]
[1749897006432,0.37988531,105060.0,105050.0,1.51564513]
[1749897007133,0.37988531,105060.0,105050.0,1.41155657]
[1749897007936,0.37988531,105060.0,105050.0,0.45407657]
[1749897008135,0.37988531,105060.0,105050.0,1.41179657]
[1749897009833,0.18959171,105060.0,105050.0,1.41179657]
[1749897010135,0.37988531,105060.0,105050.0,1.41179657]
[1749897010336,0.37988531,105060.0,105050.0,1.77259657]
[1749897010638,0.18959171,105060.0,105050.0,1.77259657]
[1749897010836,0.37988531,105060.0,105050.0,1.77259657]
[1749897011335,0.18959171,105060.0,105050.0,1.77259657]
[1749897011532,0.18959171,105060.0,105050.0,1.86779657]
[1749897011733,0.18959171,105060.0,105050.0,1.91239001]
[1749897015538,0.18959171,105060.0,105050.0,2.0593963]
[1749897015830,0.09339171,105060.0,105050.0,1.91239001]
[1749897016637,0.09339171,105060.0,105050.0,2.0593963]
[1749897016942,0.09339171,105060.0,105050.0,2.0603963]
[1749897017141,0.00413835,105060.0,105050.0,2.07529798]
[1749897017530,0.00413835,105060.0,105050.0,2.07729798]
[1749897019540,0.00413835,105060.0,105050.0,1.93029169]
[1749897021028,0.00413835,105060.0,105050.0,2.43729798]
[1749897022840,0.00413835,105060.0,105050.0,2.52657519]
[1749897025642,0.00413835,105060.0,105050.0,2.5358857]
[1749897025840,0.00413835,105060.0,105050.0,2.20657519]
[1749897026043,0.00413835,105060.0,105050.0,2.49657519]
[1749897026244,0.00413835,105060.0,105050.0,2.40729798]
[1749897028749,0.00413835,105060.0,105050.0,2.49657519]
[1749897029348,0.08925336,105090.0,105080.0,0.1902574]
[1749897029538,0.08925336,105090.0,105080.0,2.19736615]
[1749897029739,0.40316461,105110.0,105100.0,0.1902212]
[1749897029950,1.90316461,105110.0,105100.0,1.2944213]
[1749897030149,1.7843031,105110.0,105100.0,1.3361415]
[1749897030346,1.7843031,105110.0,105100.0,1.14741501]
[1749897030654,2.29210939,105110.0,105100.0,1.2947013]
[1749897031445,2.29210939,105110.0,105100.0,0.3379813]
[1749897031652,2.30148019,105110.0,105100.0,1.2959813]
[1749897031845,2.1544739,105110.0,105100.0,1.2959813]
[1749897032045,2.23050156,105110.0,105100.0,1.2959813]
[1749897032349,2.37750785,105110.0,105100.0,0.3389813]
[1749897032552,2.37750785,105110.0,105100.0,1.2962213]
[1749897033146,2.23050156,105110.0,105100.0,1.2962213]
[1749897033350,2.37750785,105110.0,105100.0,1.2962213]
[1749897033548,2.23050156,105110.0,105100.0,1.2962213]
[1749897033750,2.37750785,105110.0,105100.0,1.2962213]
[1749897034754,2.3816462,105110.0,105100.0,1.2962213]
[1749897036053,2.23463991,105110.0,105100.0,1.2962213]
[1749897036255,2.3816462,105110.0,105100.0,1.2962213]
[1749897036853,2.23463991,105110.0,105100.0,1.2962213]
[1749897037754,2.3816462,105110.0,105100.0,1.2962213]
[1749897038057,2.23463991,105110.0,105100.0,1.2962213]
[1749897046367,2.3816462,105110.0,105100.0,1.2962213]
[1749897047071,2.3816462,105110.0,105100.0,1.14921501]
[1749897047270,2.3816462,105110.0,105100.0,1.2962213]
[1749897049669,2.47048507,105110.0,105100.0,1.2962213]
[1749897053873,2.47048507,105110.0,105100.0,1.2972213]
[1749897054173,2.47048507,105110.0,105100.0,1.2992213]
[1749897055471,2.32347878,105110.0,105100.0,1.2992213]
[1749897055671,2.47048507,105110.0,105100.0,1.2992213]
[1749897057375,2.3816462,105110.0,105100.0,1.2992213]
[1749897058378,2.50050771,105110.0,105100.0,1.2992213]
[1749897059177,2.35350142,105110.0,105100.0,1.2992213]
[1749897059379,2.35350142,105110.0,105100.0,1.34168704]
[1749897060079,2.35350142,105110.0,105100.0,1.19468075]
[1749897060274,2.35350142,105110.0,105100.0,1.34168704]
[1749897060872,2.50050771,105110.0,105100.0,1.34168704]
[1749897061170,2.35350142,105110.0,105100.0,1.34168704]
[1749897062170,2.50050771,105110.0,105100.0,1.34168704]
[1749897062773,2.50050771,105110.0,105100.0,1.34218958]
[1749897063080,2.50050771,105110.0,105100.0,1.34244085]
[1749897063278,2.50050771,105110.0,105100.0,1.19543456]
[1749897063479,2.50050771,105110.0,105100.0,1.34244085]
[1749897065279,2.35350142,105110.0,105100.0,1.34244085]
[1749897067578,2.23463991,105110.0,105100.0,1.35913678]
[1749897076991,2.35350142,105110.0,105100.0,1.35913678]
[1749897088112,2.35350142,105110.0,105100.0,1.35713678]
[1749897088413,2.35350142,105110.0,105100.0,1.36213678]
[1749897093308,2.35350142,105110.0,105100.0,1.34544085]
[1749897094016,1.99270142,105110.0,105100.0,1.34544085]
[1749897097010,0.10270327,105110.0,105100.0,0.75270221]
[1749897097210,0.10270327,105110.0,105100.0,2.08910221]
[1749897097415,0.10270327,105110.0,105100.0,1.81120221]
[1749897097613,0.10270327,105110.0,105100.0,1.84230221]
[1749897097814,0.29290637,105110.0,105100.0,1.84230221]
[1749897098215,0.10270327,105110.0,105100.0,1.84230221]
[1749897101421,0.10270327,105110.0,105100.0,1.69529592]
[1749897101612,0.10270327,105110.0,105100.0,1.84230221]
[1749897102924,0.10270327,105110.0,105100.0,1.69529592]
[1749897103224,0.10270327,105110.0,105100.0,1.84230221]
[1749897103523,0.10270327,105110.0,105100.0,1.69529592]
[1749897103725,0.10270327,105110.0,105100.0,1.84230221]
[1749897108528,0.00413835,105110.0,105100.0,2.19230221]
[1749897110824,0.0138577,105110.0,105100.0,2.19230221]
[1749897111124,0.00413835,105110.0,105100.0,2.25165582]
[1749897112325,0.00413835,105110.0,105100.0,2.35416075]
[1749897112933,0.37707982,105120.0,105110.0,0.1902031]
[1749897113229,0.37707912,105120.0,105110.0,2.10698217]
[1749897113430,0.37707912,105120.0,105110.0,1.81296959]
[1749897113630,0.37707912,105120.0,105110.0,1.78773598]
[1749897113825,0.38638659,105120.0,105110.0,1.78773598]
[1749897114428,0.38638659,105120.0,105110.0,1.78973598]
[1749897114933,0.38638659,105120.0,105110.0,1.74527523]
[1749897115132,0.38638659,105120.0,105110.0,1.74727523]
[1749897115628,0.10700747,105120.0,105110.0,1.74727523]
[1749897117235,0.19620159,105120.0,105110.0,1.74727523]
[1749897119237,0.19620159,105120.0,105110.0,1.74927523]
[1749897119736,0.38638659,105120.0,105110.0,1.74927523]
[1749897120034,0.38638659,105120.0,105110.0,1.75327523]
[1749897123638,0.38638659,105120.0,105110.0,1.45926265]
[1749897123839,0.38638659,105120.0,105110.0,1.75327523]
[1749897124841,0.38638659,105120.0,105110.0,1.45926265]
[1749897125040,0.39052494,105120.0,105110.0,1.60626894]
[1749897127044,0.30133082,105120.0,105110.0,1.60626894]
[1749897127243,0.01344582,105120.0,105110.0,2.08327523]
[1749897127444,0.10252765,105120.0,105110.0,2.11617523]
[1749897128340,0.09322018,105120.0,105110.0,2.11617523]
[1749897129045,0.09322018,105120.0,105110.0,2.11692904]
[1749897132942,0.09322018,105120.0,105110.0,3.07212904]
[1749897137249,0.00413835,105120.0,105110.0,3.1759434]
[1749897138149,0.00413835,105120.0,105110.0,3.1559434]
[1749897140755,0.00413835,105120.0,105110.0,3.2225334]
[1749897146755,0.00413835,105120.0,105110.0,3.17807265]
[1749897146952,0.00413835,105120.0,105110.0,3.26710307]
[1749897163075,0.00413835,105120.0,105110.0,3.26705101]
[1749897163868,0.00413835,105120.0,105110.0,3.20774946]
[1749897164067,0.00413835,105120.0,105110.0,3.26705083]
[1749897164275,0.00413835,105120.0,105110.0,3.2670499]
[1749897165370,0.00413835,105120.0,105110.0,3.20774946]
[1749897166477,0.00413835,105120.0,105110.0,3.20374946]
[1749897166774,0.00413835,105120.0,105110.0,3.20974946]
[1749897167469,0.00413835,105120.0,105110.0,3.21174946]
[1749897167869,0.00413835,105120.0,105110.0,2.22364946]
[1749897168075,0.09943835,105120.0,105110.0,3.17844946]
[1749897169178,0.09943835,105120.0,105110.0,3.17444946]
[1749897170269,0.09943835,105120.0,105110.0,3.25370553]
[1749897175571,0.09943835,105120.0,105110.0,2.15193924]
[1749897175776,0.79742984,105120.0,105110.0,0.74179676]
[1749897175977,0.73950538,105120.0,105110.0,1.51627676]
[1749897176278,0.73950538,105120.0,105110.0,0.50226069]
[1749897176473,0.73950538,105120.0,105110.0,1.45698069]
[1749897177074,0.73950538,105120.0,105110.0,1.41249275]
[1749897177275,0.73950538,105120.0,105110.0,0.45377275]
[1749897177476,0.73950538,105120.0,105110.0,1.40849275]
[1749897177682,0.73950538,105120.0,105110.0,1.40649275]
[1749897177980,0.73950538,105120.0,105110.0,0.45177275]
[1749897178182,0.73950538,105120.0,105110.0,1.40649275]
[1749897178885,0.18852018,105120.0,105110.0,1.76729275]
[1749897179085,0.18852018,105120.0,105110.0,1.91429904]
[1749897179484,0.18852018,105120.0,105110.0,1.76729275]
[1749897179680,0.18852018,105120.0,105110.0,0.81257275]
[1749897179889,0.18852018,105120.0,105110.0,1.76713275]
[1749897180386,0.18852018,105120.0,105110.0,1.76913275]
[1749897180588,0.18852018,105120.0,105110.0,1.77013275]
[1749897180779,0.18852018,105120.0,105110.0,1.91713904]
[1749897180980,0.18852018,105120.0,105110.0,2.23713904]
[1749897182087,0.12582018,105120.0,105110.0,2.28162698]
[1749897182389,0.00413835,105120.0,105110.0,2.37452698]
[1749897182585,0.00413835,105120.0,105110.0,2.43382305]
[1749897183585,0.00413835,105120.0,105110.0,2.38533511]
[1749897183789,0.00413835,105120.0,105110.0,2.48136553]
[1749897184283,0.00413835,105120.0,105110.0,2.48336553]
[1749897184486,0.00413835,105120.0,105110.0,2.48536553]
[1749897185491,1.69488253,105140.0,105130.0,0.1901671]
[1749897185690,1.69488253,105140.0,105130.0,2.51783294]
[1749897186981,1.69488253,105140.0,105130.0,2.52483294]
[1749897187193,1.68538183,105140.0,105130.0,2.52483294]
[1749897187990,1.69510375,105140.0,105130.0,2.52483294]
[1749897188383,1.69510375,105140.0,105130.0,2.52683294]
[1749897188581,1.68538183,105140.0,105130.0,2.52683294]
[1749897189186,0.0963,105140.0,105130.0,2.67383923]
[1749897189387,0.08908183,105150.0,105140.0,0.1901491]
[1749897189590,0.27919483,105160.0,105150.0,0.190131]
[1749897189787,1.77919483,105160.0,105150.0,1.33483684]
[1749897190585,1.77919473,105160.0,105150.0,1.2943711]
[1749897190988,1.77919473,105160.0,105150.0,1.44137739]
[1749897191186,1.77919473,105160.0,105150.0,1.27960639]
[1749897191482,1.7887098,105160.0,105150.0,1.27960639]
[1749897191686,1.7887098,105160.0,105150.0,1.14936481]
[1749897192084,1.86348427,105160.0,105150.0,1.27960639]
[1749897192485,1.95808427,105160.0,105150.0,1.27960639]
[1749897193993,1.95808427,105160.0,105150.0,1.14936481]
[1749897194195,1.95808427,105160.0,105150.0,1.27960639]
[1749897194993,1.95808427,105160.0,105150.0,1.2803602]
[1749897197294,1.86900244,105160.0,105150.0,1.2803602]
[1749897198291,1.60411507,105160.0,105150.0,2.1023202]
[1749897198488,0.29422797,105160.0,105150.0,2.1023202]
[1749897200197,0.29836632,105160.0,105150.0,2.1023202]
[1749897201099,0.29836632,105160.0,105150.0,1.97207862]
[1749897201491,0.29836632,105160.0,105150.0,1.01759862]
[1749897201687,0.29836632,105160.0,105150.0,2.1020802]
[1749897207006,0.29836632,105160.0,105150.0,1.97183862]
[1749897207300,0.38744815,105160.0,105150.0,1.97183862]
[1749897207501,0.38744815,105160.0,105150.0,2.1020802]
[1749897212099,0.38744815,105160.0,105150.0,2.1348802]
[1749897212299,0.38744815,105160.0,105150.0,2.00463862]
[1749897212501,0.38744815,105160.0,105150.0,2.1348802]
[1749897213409,0.38744815,105160.0,105150.0,2.17715328]
[1749897213907,0.38744815,105160.0,105150.0,2.21035328]
[1749897214801,0.32354815,105160.0,105150.0,2.21035328]
[1749897217311,0.32354815,105160.0,105150.0,2.24135328]
[1749897219215,0.32354815,105160.0,105150.0,2.40415734]
[1749897219410,0.23446632,105160.0,105150.0,2.40415734]
[1749897219716,0.23446632,105160.0,105150.0,2.40715734]
[1749897219917,0.20376632,105160.0,105150.0,2.40715734]
[1749897220314,0.20376632,105160.0,105150.0,2.1141117]
[1749897220515,0.20376632,105160.0,105150.0,2.40715734]
[1749897222916,0.20376632,105160.0,105150.0,2.1141117]
[1749897223119,0.20376632,105160.0,105150.0,2.40715734]
[1749897223520,0.20376632,105160.0,105150.0,2.26063452]
[1749897225809,0.20376632,105160.0,105150.0,2.25563452]
[1749897226013,0.20376632,105160.0,105150.0,2.25763452]
[1749897227123,0.32262783,105160.0,105150.0,2.25763452]
[1749897227921,0.35412783,105160.0,105150.0,2.25763452]
[1749897231334,0.35412783,105160.0,105150.0,2.32420452]
[1749897231528,0.32262783,105160.0,105150.0,2.32420452]
[1749897232733,0.32262783,105160.0,105150.0,2.47072734]
[1749897234238,0.32262783,105160.0,105150.0,2.46872734]
[1749897234430,0.32262783,105160.0,105150.0,2.47172734]
[1749897235331,0.32262783,105160.0,105150.0,2.46972734]
[1749897235527,0.32262783,105160.0,105150.0,2.47380734]
[1749897237134,0.20376632,105160.0,105150.0,2.47380734]
[1749897239539,0.01365342,105160.0,105150.0,2.47380734]
[1749897239942,0.10282258,105160.0,105150.0,2.51822671]
[1749897241437,0.29293548,105160.0,105150.0,2.51822671]
[1749897241843,0.10282258,105160.0,105150.0,2.51822671]
[1749897244446,0.29293548,105160.0,105150.0,2.51822671]
[1749897247239,0.10282258,105160.0,105150.0,2.51822671]
[1749897247548,0.01365342,105160.0,105150.0,2.93832278]
[1749897249151,0.01365342,105160.0,105150.0,2.85163033]
[1749897249451,0.01365342,105160.0,105150.0,2.93828609]
[1749897249948,0.00413835,105160.0,105150.0,2.94028609]
[1749897250154,0.00413835,105160.0,105150.0,2.93728609]
[1749897250352,0.00413835,105160.0,105150.0,2.94128609]
[1749897252150,0.19425125,105160.0,105150.0,2.61700045]
[1749897252449,0.89445786,105160.0,105150.0,0.12036552]
[1749897252650,0.92415021,105160.0,105150.0,0.25807762]
[1749897252854,0.92415021,105160.0,105150.0,1.03215762]
[1749897253055,0.92415021,105160.0,105150.0,1.22228862]
[1749897253263,2.42415021,105160.0,105150.0,1.21828862]
[1749897253458,2.42415021,105160.0,105150.0,1.21428862]
[1749897253854,2.27762739,105160.0,105150.0,1.21428862]
[1749897254156,2.42415021,105160.0,105150.0,1.21228862]
[1749897254753,2.42415021,105160.0,105150.0,0.06807762]
[1749897254953,2.42415021,105160.0,105150.0,1.35881144]
[1749897255351,2.27762739,105160.0,105150.0,1.21228862]
[1749897256058,2.27762739,105160.0,105150.0,1.21232862]
[1749897256753,2.27762739,105160.0,105150.0,1.21432862]
[1749897256956,2.27762739,105160.0,105150.0,0.26020862]
[1749897257152,2.27762739,105160.0,105150.0,1.21632862]
[1749897258659,1.91682739,105160.0,105150.0,1.34660064]
[1749897258957,1.88697023,105160.0,105150.0,1.40920064]
[1749897260162,1.88697023,105160.0,105150.0,0.63508064]
[1749897260360,1.88697023,105160.0,105150.0,1.37880064]
[1749897260558,1.88697023,105160.0,105150.0,1.34660064]
[1749897261058,1.88697023,105160.0,105150.0,1.21632862]
[1749897262561,1.88697023,105160.0,105150.0,1.34660064]
[1749897267168,1.91682739,105160.0,105150.0,1.34660064]
[1749897268468,1.79796588,105160.0,105150.0,1.34660064]
[1749897268657,1.70356588,105160.0,105150.0,1.37980064]
[1749897268861,1.70356588,105160.0,105150.0,1.44330064]
[1749897269062,1.70356588,105160.0,105150.0,1.31302862]
[1749897269362,1.73666588,105160.0,105150.0,1.44330064]
[1749897269667,1.73666588,105160.0,105150.0,1.44130064]
[1749897269868,1.73666588,105160.0,105150.0,1.44530064]
[1749897270370,1.73666588,105160.0,105150.0,1.44630064]
[1749897271966,1.51345298,105160.0,105150.0,2.97902064]
[1749897272167,1.60245477,105160.0,105150.0,2.62902064]
[1749897272474,1.60245477,105160.0,105150.0,2.67128697]
[1749897272770,1.60245477,105160.0,105150.0,2.54101495]
[1749897272970,0.10245477,105160.0,105150.0,3.00128697]
[1749897274370,0.10245477,105160.0,105150.0,3.02128697]
[1749897275071,0.10245477,105160.0,105150.0,2.67228697]
[1749897275372,0.10245477,105160.0,105150.0,2.67428697]
[1749897277172,0.01345298,105160.0,105150.0,2.71865483]
[1749897278571,0.00413835,105160.0,105150.0,2.71865483]
[1749897278771,0.01364694,105160.0,105150.0,2.71865483]
[1749897278972,0.00413835,105160.0,105150.0,2.71865483]
[1749897282770,0.00413835,105160.0,105150.0,3.09865483]
[1749897283271,0.00413835,105160.0,105150.0,3.26135857]
[1749897284871,0.00413835,105160.0,105150.0,3.27628678]
[1749897285371,0.00413835,105160.0,105150.0,3.23402045]
[1749897285576,0.00413835,105160.0,105150.0,3.27636044]
[1749897285877,0.00413835,105160.0,105150.0,3.27836044]
[1749897286172,0.00935764,105170.0,105160.0,0.1901129]
[1749897286371,0.32660199,105180.0,105170.0,0.1900948]
[1749897286572,0.32660199,105180.0,105170.0,1.38992268]
[1749897286774,0.33635318,105180.0,105170.0,1.38992268]
[1749897286974,1.83635318,105180.0,105170.0,2.21251649]
[1749897287272,1.8643288,105180.0,105170.0,2.19621009]
[1749897287476,1.8643288,105180.0,105170.0,2.23855429]
[1749897288275,1.8643288,105180.0,105170.0,2.24255429]
[1749897288479,1.8643288,105180.0,105170.0,2.11537281]
[1749897289782,1.86846715,105180.0,105170.0,2.11537281]
[1749897289980,0.10289133,105180.0,105170.0,2.24555429]
[1749897290279,0.00413835,105180.0,105170.0,2.960671]
[1749897290779,0.19421505,105180.0,105170.0,1.334031]
[1749897290977,0.19421505,105180.0,105170.0,2.290751]
[1749897291285,0.00413835,105180.0,105170.0,2.290711]
[1749897291484,0.19421505,105180.0,105170.0,2.290711]
[1749897292988,0.00413835,105180.0,105170.0,2.290711]
[1749897293286,0.19421505,105180.0,105170.0,2.290711]
[1749897293986,0.19421505,105180.0,105170.0,2.29146481]
[1749897294385,0.19421505,105180.0,105170.0,2.2471481]
[1749897294586,0.20395664,105180.0,105170.0,2.2471481]
[1749897296390,0.20395664,105180.0,105170.0,2.2465881]
[1749897299088,0.01387994,105180.0,105170.0,2.2465881]
[1749897299284,0.20395654,105180.0,105170.0,2.2465881]
[1749897299991,0.20395654,105180.0,105170.0,1.16028662]
[1749897300196,0.30035654,105180.0,105170.0,2.2139481]
[1749897301413,0.30035664,105180.0,105170.0,2.2139481]
[1749897306599,0.30035664,105180.0,105170.0,2.1489681]
[1749897309301,0.30035664,105180.0,105170.0,2.1652479]
[1749897309502,0.30035664,105180.0,105170.0,2.1962479]
[1749897309696,0.30035664,105180.0,105170.0,2.1652479]
[1749897310009,0.38935843,105180.0,105170.0,2.1652479]
[1749897310710,0.38935843,105180.0,105170.0,2.1962479]
[1749897311011,0.38935843,105180.0,105170.0,2.2272479]
[1749897312012,0.38935843,105180.0,105170.0,1.2092479]
[1749897312206,0.75015843,105180.0,105170.0,2.1648079]
[1749897312509,0.75015843,105180.0,105170.0,2.01834662]
[1749897312704,0.75015843,105180.0,105170.0,2.1648079]
[1749897313510,0.89661971,105180.0,105170.0,1.3900879]
[1749897313712,0.75015843,105180.0,105170.0,2.1646879]
[1749897314112,0.75015843,105180.0,105170.0,2.1646479]
[1749897316810,0.75015843,105180.0,105170.0,2.1644079]
[1749897317613,0.78001815,105180.0,105170.0,2.1220637]
[1749897318313,0.78001815,105180.0,105170.0,2.1536637]
[1749897320517,0.78001815,105180.0,105170.0,2.1863637]
[1749897322216,0.78001815,105180.0,105170.0,2.22876741]
[1749897323016,0.78001815,105180.0,105170.0,2.1863637]
[1749897323317,0.78001815,105180.0,105170.0,2.22876713]
[1749897325914,0.78001815,105180.0,105170.0,2.1863637]
[1749897326421,0.78001815,105180.0,105170.0,2.03990242]
[1749897326609,0.78001815,105180.0,105170.0,2.1863637]
[1749897327620,0.75024543,105180.0,105170.0,2.22876988]
[1749897328813,0.75024543,105180.0,105170.0,1.3079886]
[1749897329017,0.92647943,105180.0,105170.0,2.16414988]
[1749897329518,0.89671261,105180.0,105170.0,0.8727538]
[1749897329719,0.92647943,105180.0,105170.0,1.0057538]
[1749897329920,0.92647943,105180.0,105170.0,0.96334762]
[1749897330122,0.92647943,105180.0,105170.0,0.96034762]
[1749897330323,0.92647943,105180.0,105170.0,0.95634762]
[1749897330922,0.92647943,105180.0,105170.0,0.00350762]
[1749897331117,0.92647943,105180.0,105170.0,0.95834762]
[1749897331515,0.92647943,105180.0,105170.0,0.18434762]
[1749897331710,0.92647943,105180.0,105170.0,0.95834762]
[1749897331916,0.92647943,105180.0,105170.0,1.14844212]
[1749897332415,0.92647943,105180.0,105170.0,0.37244212]
[1749897332619,0.92647943,105180.0,105170.0,0.5189034]
[1749897333019,0.92647943,105180.0,105170.0,0.5209034]
[1749897333324,0.92647943,105180.0,105170.0,0.5874534]
[1749897333721,0.92647943,105180.0,105170.0,0.5854534]
[1749897339932,0.78001815,105180.0,105170.0,0.5854534]
[1749897340228,0.92647943,105180.0,105170.0,0.5854534]
[1749897342434,0.92647943,105180.0,105170.0,0.25815212]
[1749897342628,0.92647943,105180.0,105170.0,0.5846134]
[1749897343720,0.92647943,105180.0,105170.0,0.43815212]
[1749897345531,0.92647943,105180.0,105170.0,0.5846134]
[1749897347726,0.92647943,105180.0,105170.0,0.5866134]
[1749897348934,0.92647943,105180.0,105170.0,0.5886134]
[1749897349237,0.92647943,105180.0,105170.0,0.26215212]
[1749897349428,0.92647943,105180.0,105170.0,0.44215212]
[1749897350531,0.80761792,105180.0,105170.0,0.44215212]
[1749897351334,0.66115664,105180.0,105170.0,0.44215212]
[1749897351538,0.80761792,105180.0,105170.0,0.44215212]
[1749897351929,0.80761792,105180.0,105170.0,0.5886134]
[1749897355537,0.92647943,105180.0,105170.0,0.6206134]
[1749897356238,0.66115664,105180.0,105170.0,0.6206134]
[1749897356439,0.80761792,105180.0,105170.0,0.69362296]
[1749897357733,0.92647943,105180.0,105170.0,0.6512134]
[1749897359544,0.92647943,105180.0,105170.0,0.5029134]
[1749897359743,0.92647943,105180.0,105170.0,0.6829534]
[1749897360344,0.80761792,105180.0,105170.0,0.6829534]
[1749897361342,0.95618548,105180.0,105170.0,0.6829534]
[1749897363245,0.95618548,105180.0,105170.0,0.53649212]
[1749897363445,0.95618548,105180.0,105170.0,0.6829534]
[1749897364035,0.95618548,105180.0,105170.0,0.25201762]
[1749897364236,0.95618548,105180.0,105170.0,0.44211212]
[1749897365245,0.95618548,105180.0,105170.0,0.25201762]
[1749897365441,0.95618548,105180.0,105170.0,0.44211212]
[1749897365744,0.95618548,105180.0,105170.0,0.44011212]
[1749897366252,0.95618548,105180.0,105170.0,0.43811212]
[1749897367344,1.01484043,105180.0,105170.0,0.43811212]
[1749897367742,1.16339988,105180.0,105170.0,0.43811212]
[1749897367945,0.95617737,105180.0,105170.0,0.43811212]
[1749897368147,0.95617737,105180.0,105170.0,0.24801762]
[1749897368444,0.95617737,105180.0,105170.0,0.43811212]
[1749897368843,0.95617737,105180.0,105170.0,0.25815212]
[1749897369146,0.95617737,105180.0,105170.0,0.43811212]
[1749897370149,0.95617737,105180.0,105170.0,0.24801762]
[1749897370344,0.95617737,105180.0,105170.0,0.43811212]
[1749897370539,0.95617737,105180.0,105170.0,0.24801762]
[1749897370744,0.95617737,105180.0,105170.0,0.43811212]
[1749897371757,0.80971609,105180.0,105170.0,0.43811212]
[1749897372047,0.95617737,105180.0,105170.0,0.43811212]
[1749897374946,0.80971609,105180.0,105170.0,0.6160734]
[1749897375142,0.85977737,105180.0,105170.0,0.6474734]
[1749897375347,0.85977737,105180.0,105170.0,0.6784734]
[1749897376755,0.85977737,105180.0,105170.0,0.6804734]
[1749897377253,0.85977737,105180.0,105170.0,0.6824734]
[1749897381350,0.85977737,105180.0,105170.0,0.31491762]
[1749897381549,0.95527737,105180.0,105170.0,0.6200734]
[1749897383456,0.95527737,105180.0,105170.0,0.6180734]
[1749897384457,0.95527737,105180.0,105170.0,0.6180735]
[1749897385051,0.95527737,105180.0,105170.0,0.6160735]
[1749897385252,0.95527737,105180.0,105170.0,0.46961222]
[1749897385455,0.95527737,105180.0,105170.0,0.6160735]
[1749897387347,0.95527737,105180.0,105170.0,0.46961222]
[1749897387553,0.95527737,105180.0,105170.0,0.6160735]
[1749897390762,0.95527737,105180.0,105170.0,0.46961222]
[1749897390966,0.80881609,105180.0,105170.0,0.6160735]
[1749897391168,0.95527737,105180.0,105170.0,0.6477735]
[1749897391868,0.80881609,105180.0,105170.0,0.6477735]
[1749897392072,0.95527737,105180.0,105170.0,0.6477735]
[1749897393168,0.95527737,105180.0,105170.0,0.28965222]
[1749897393367,0.95527737,105180.0,105170.0,0.6160735]
[1749897400977,0.95527737,105180.0,105170.0,0.6487735]
[1749897404983,0.95527737,105180.0,105170.0,0.50231222]
[1749897405186,0.95527737,105180.0,105170.0,0.6487735]
[1749897405379,0.95527737,105180.0,105170.0,0.09955762]
[1749897405579,0.95527737,105180.0,105170.0,0.5844934]
[1749897407676,1.07415478,105180.0,105170.0,0.06805762]
[1749897407877,0.9531792,105180.0,105170.0,0.06805762]
[1749897408078,1.10173865,105180.0,105170.0,0.06805762]
[1749897408385,0.9531792,105180.0,105170.0,0.06805762]
[1749897412589,1.10173865,105180.0,105170.0,0.06805762]
[1749897413991,0.95527737,105180.0,105170.0,0.06805762]
[1749897416794,0.80671792,105180.0,105170.0,0.06805762]
[1749897416995,1.01394043,105180.0,105170.0,0.06805762]
[1749897417593,0.95524689,105180.0,105170.0,0.06805762]
[1749897418188,1.10170817,105180.0,105170.0,0.06805762]
[1749897425501,1.28158817,105180.0,105170.0,0.06805762]
[1749897430402,1.28158817,105180.0,105170.0,0.09915762]
[1749897434403,1.33158817,105180.0,105170.0,0.06805762]
[1749897434907,0.1901126,105160.0,105150.0,0.97651998]
[1749897435098,0.81622207,105160.0,105150.0,1.08270102]
[1749897435300,0.81622207,105160.0,105150.0,1.04031998]
[1749897436199,0.84742207,105160.0,105150.0,1.0846868]
[1749897436401,1.20822207,105160.0,105150.0,0.2138]
[1749897436601,1.27222207,105160.0,105150.0,0.034]
[1749897436902,1.27222207,105160.0,105150.0,0.2138]
[1749897437606,1.27222207,105160.0,105150.0,0.1858]
[1749897438601,1.27222207,105160.0,105150.0,0.1818]
[1749897438795,1.27222207,105160.0,105150.0,0.1798]
[1749897439000,0.1901307,105150.0,105140.0,0.58045043]
[1749897439201,0.78648155,105150.0,105140.0,0.47597176]
[1749897439807,0.78648155,105150.0,105140.0,0.62243304]
[1749897440005,0.78648155,105150.0,105140.0,0.65483304]
[1749897440205,0.78648155,105150.0,105140.0,0.65683304]
[1749897440605,0.78648155,105150.0,105140.0,0.65783304]
[1749897442404,0.78648155,105150.0,105140.0,0.51137176]
[1749897442609,0.81624017,105150.0,105140.0,0.46901502]
[1749897442804,0.81624017,105150.0,105140.0,0.6154763]
[1749897443007,0.81624017,105150.0,105140.0,0.0336]
[1749897443208,0.84644017,105150.0,105140.0,0.2134]
[1749897443509,0.90964017,105150.0,105140.0,0.2134]
[1749897444211,1.05610145,105150.0,105140.0,0.2114]
[1749897444411,0.90964017,105150.0,105140.0,0.2104]
[1749897445301,0.90964017,105150.0,105140.0,0.0306]
[1749897445510,0.90964017,105150.0,105140.0,0.2104]
[1749897447407,0.79079198,105150.0,105140.0,0.2104]
[1749897448208,0.90964017,105150.0,105140.0,0.2104]
[1749897448513,0.79079198,105150.0,105140.0,0.2104]
[1749897451115,0.79079198,105150.0,105140.0,0.1798]
[1749897451315,0.93725326,105150.0,105140.0,0.1798]
[1749897452112,1.29079198,105150.0,105140.0,0.1798]
[1749897453513,1.29079198,105150.0,105140.0,0.2121]
[1749897455416,1.41377852,105150.0,105140.0,0.2121]
[1749897457818,1.29493033,105150.0,105140.0,0.2121]
[1749897459614,1.29493033,105150.0,105140.0,0.21202]
[1749897464630,1.29493033,105150.0,105140.0,0.17972]
[1749897467633,1.44139161,105150.0,105140.0,0.17972]
[1749897468734,0.1901488,105140.0,105130.0,1.04657903]
[1749897468935,0.72801008,105140.0,105130.0,1.41646593]
[1749897470035,0.72801008,105140.0,105130.0,1.41746593]
[1749897470237,1.22801008,105140.0,105130.0,1.41746593]
[1749897470937,1.30357012,105140.0,105130.0,1.41746593]
[1749897471137,1.30357012,105140.0,105130.0,1.44886593]
[1749897471636,1.30357012,105140.0,105130.0,1.45086593]
[1749897478430,1.36607012,105140.0,105130.0,2.22438593]
[1749897478838,1.36607012,105140.0,105130.0,1.24180465]
[1749897480142,1.36607012,105140.0,105130.0,1.38826593]
[1749897480442,1.36607012,105140.0,105130.0,1.19809903]
[1749897480840,1.36607012,105140.0,105130.0,1.02143775]